[Event "Live Chess"]
[Site "Chess.com"]
[Date "2023.05.21"]
[Round "-"]
[White "Duke_of_Bebington"]
[Black "whitedjohn"]
[Result "0-1"]
[WhiteElo "1552"]
[BlackElo "1676"]
[TimeControl "300"]
[EndTime "7:16:18 PDT"]
[Termination "whitedjohn won by resignation"]

1. e4 {[%clk 0:04:57.7]} 1... Nf6 {[%clk 0:04:58.7]} 2. e5 {[%clk 0:04:55]} 2...
Nd5 {[%clk 0:04:57.6]} 3. c4 {[%clk 0:04:54.4]} 3... Nb6 {[%clk 0:04:56]} 4. d4
{[%clk 0:04:53.1]} 4... d6 {[%clk 0:04:54.8]} 5. f4 {[%clk 0:04:51.5]} 5... dxe5
{[%clk 0:04:53.6]} 6. fxe5 {[%clk 0:04:49.8]} 6... Nc6 {[%clk 0:04:53.1]} 7. Nf3
{[%clk 0:04:48.1]} 7... Bg4 {[%clk 0:04:52.4]} 8. Be3 {[%clk 0:04:44.2]} 8... e6
{[%clk 0:04:50.4]} 9. Be2 {[%clk 0:04:41.9]} 9... Be7 {[%clk 0:04:46.7]} 10. O-O
{[%clk 0:04:40.8]} 10... O-O {[%clk 0:04:43]} 11. a4 {[%clk 0:04:39.4]} 11... a5
{[%clk 0:04:25.9]} 12. d5 {[%clk 0:04:31.4]} 12... Bxf3 {[%clk 0:04:17.9]} 13.
Bxf3 {[%clk 0:04:29.9]} 13... Nxe5 {[%clk 0:04:16.4]} 14. Bxb6 {[%clk
0:04:27.6]} 14... cxb6 {[%clk 0:04:11.1]} 15. dxe6 {[%clk 0:04:20.2]} 15... fxe6
{[%clk 0:04:08.6]} 16. Bxb7 {[%clk 0:04:10]} 16... Rb8 {[%clk 0:03:57.4]} 17.
Rxf8+ {[%clk 0:04:07.2]} 17... Bxf8 {[%clk 0:03:51.6]} 18. Bf3 {[%clk 0:04:05]}
18... Qxd1+ {[%clk 0:03:46.7]} 19. Bxd1 {[%clk 0:04:03.5]} 19... Nxc4 {[%clk
0:03:43.9]} 20. Nc3 {[%clk 0:04:01.5]} 20... Bc5+ {[%clk 0:03:35.7]} 21. Kf1
{[%clk 0:03:59.5]} 21... Ne3+ {[%clk 0:03:34]} 22. Ke1 {[%clk 0:03:58.1]} 22...
Nxg2+ {[%clk 0:03:30.1]} 23. Kd2 {[%clk 0:03:56.1]} 23... Rd8+ {[%clk
0:03:22.4]} 24. Kc2 {[%clk 0:03:55.3]} 24... Ne3+ {[%clk 0:03:18.7]} 25. Kc1
{[%clk 0:03:53]} 25... Nxd1 {[%clk 0:02:51.7]} 26. Nxd1 {[%clk 0:03:52.9]} 26...
e5 {[%clk 0:02:38.1]} 27. Nc3 {[%clk 0:03:50.2]} 27... Kf7 {[%clk 0:02:35.7]}
28. Kc2 {[%clk 0:03:49.5]} 28... Bd4 {[%clk 0:02:31.5]} 29. Re1 {[%clk
0:03:46.3]} 29... Rc8 {[%clk 0:02:21]} 30. Kd3 {[%clk 0:03:39.9]} 30... Bxc3
{[%clk 0:02:19]} 31. bxc3 {[%clk 0:03:39.3]} 31... Ke6 {[%clk 0:02:16.7]} 32. c4
{[%clk 0:03:36.4]} 32... Rc5 {[%clk 0:02:13.2]} 33. Rb1 {[%clk 0:03:31.5]} 33...
Rc6 {[%clk 0:02:09.9]} 34. Rb5 {[%clk 0:03:29.7]} 34... g5 {[%clk 0:01:59]} 35.
h3 {[%clk 0:03:28]} 35... h5 {[%clk 0:01:57.1]} 36. Rd5 {[%clk 0:03:25.4]} 36...
Rd6 {[%clk 0:01:54.1]} 37. Ke4 {[%clk 0:03:23.3]} 37... Rxd5 {[%clk 0:01:51.7]}
38. cxd5+ {[%clk 0:03:22.4]} 38... Kd6 {[%clk 0:01:50.6]} 39. Kf5 {[%clk
0:03:21]} 39... g4 {[%clk 0:01:45.1]} 40. hxg4 {[%clk 0:03:20]} 40... hxg4
{[%clk 0:01:44.1]} 41. Kxg4 {[%clk 0:03:19.9]} 41... Kxd5 {[%clk 0:01:43.1]} 42.
Kf5 {[%clk 0:03:19]} 42... Kd4 {[%clk 0:01:41.8]} 0-1

[Event "Live Chess"]
[Site "Chess.com"]
[Date "2023.05.21"]
[Round "-"]
[White "robotking06"]
[Black "MartynColebrook"]
[Result "0-1"]
[WhiteElo "308"]
[BlackElo "1335"]
[TimeControl "300"]
[EndTime "7:16:22 PDT"]
[Termination "MartynColebrook won by checkmate"]

1. e4 {[%clk 0:04:58.2]} 1... d5 {[%clk 0:04:58.4]} 2. exd5 {[%clk 0:04:56.4]}
2... Qxd5 {[%clk 0:04:55]} 3. Nc3 {[%clk 0:04:55.5]} 3... Qa5 {[%clk 0:04:51.6]}
4. d4 {[%clk 0:04:39.3]} 4... e5 {[%clk 0:04:47.8]} 5. dxe5 {[%clk 0:04:34.8]}
5... Qxe5+ {[%clk 0:04:46]} 6. Be2 {[%clk 0:04:33.5]} 6... Bf5 {[%clk
0:04:42.2]} 7. g4 {[%clk 0:04:29.3]} 7... Bxg4 {[%clk 0:04:38.9]} 8. f3 {[%clk
0:04:16.5]} 8... Bf5 {[%clk 0:04:35.6]} 9. f4 {[%clk 0:04:07.4]} 9... Qd6 {[%clk
0:04:29]} 10. Bb5+ {[%clk 0:04:03.4]} 10... Nd7 {[%clk 0:04:22.4]} 11. Qxd6
{[%clk 0:03:57.5]} 11... Bxd6 {[%clk 0:04:20.7]} 12. Be3 {[%clk 0:03:47]} 12...
O-O-O {[%clk 0:04:17.2]} 13. O-O-O {[%clk 0:03:44.5]} 13... Nb6 {[%clk
0:04:06.3]} 14. Nd5 {[%clk 0:03:34.9]} 14... Nxd5 {[%clk 0:04:04.1]} 15. Rxd5
{[%clk 0:03:33.6]} 15... Be4 {[%clk 0:04:00.4]} 16. Rd4 {[%clk 0:03:21.3]} 16...
Bxh1 {[%clk 0:03:57.7]} 17. Bf2 {[%clk 0:02:56]} 17... Nf6 {[%clk 0:03:50]} 18.
Bh4 {[%clk 0:02:50.6]} 18... Bxf4+ {[%clk 0:03:48.1]} 19. Kb1 {[%clk 0:02:45.6]}
19... Rxd4 {[%clk 0:03:46.3]} 20. Bxf6 {[%clk 0:02:43.8]} 20... gxf6 {[%clk
0:03:44.4]} 21. Bd7+ {[%clk 0:02:43.1]} 21... Kxd7 {[%clk 0:03:42.5]} 22. c4
{[%clk 0:02:42.2]} 22... Re8 {[%clk 0:03:40]} 23. Nf3 {[%clk 0:02:41.8]} 23...
Rd1+ {[%clk 0:03:36.7]} 24. Kc2 {[%clk 0:02:40.3]} 24... Bxf3 {[%clk 0:03:34.2]}
25. Kc3 {[%clk 0:02:39]} 25... Re3+ {[%clk 0:03:30.9]} 26. Kc2 {[%clk
0:02:37.3]} 26... c5 {[%clk 0:03:27.4]} 27. h4 {[%clk 0:02:34.3]} 27... b5
{[%clk 0:03:21.3]} 28. b4 {[%clk 0:02:33.1]} 28... cxb4 {[%clk 0:03:19.8]} 29.
cxb5 {[%clk 0:02:32.2]} 29... Kd6 {[%clk 0:03:17.9]} 30. Kb2 {[%clk 0:02:28.3]}
30... Kc5 {[%clk 0:03:14.5]} 31. Kc2 {[%clk 0:02:26.1]} 31... Kxb5 {[%clk
0:03:12.6]} 32. h5 {[%clk 0:02:22.8]} 32... Rc3+ {[%clk 0:03:07.6]} 33. Kb2
{[%clk 0:02:21.1]} 33... Bc1+ {[%clk 0:02:59.8]} 34. Kb1 {[%clk 0:02:19.4]}
34... Ba3# {[%clk 0:02:58.1]} 0-1

[Event "Live Chess"]
[Site "Chess.com"]
[Date "2023.05.21"]
[Round "-"]
[White "Hussamalhaidar"]
[Black "NateSolon"]
[Result "0-1"]
[WhiteElo "1136"]
[BlackElo "2643"]
[TimeControl "300"]
[EndTime "7:16:27 PDT"]
[Termination "NateSolon won - game abandoned"]

1. b3 {[%clk 0:04:55.9]} 1... e5 {[%clk 0:04:58.7]} 2. Bb2 {[%clk 0:04:53.7]}
2... Nc6 {[%clk 0:04:58.3]} 3. e3 {[%clk 0:04:51.4]} 3... d5 {[%clk 0:04:57.5]}
4. Bb5 {[%clk 0:04:49.5]} 4... Ne7 {[%clk 0:04:56.7]} 5. Bxe5 {[%clk 0:04:45.8]}
5... a6 {[%clk 0:04:55.8]} 6. Bxc6+ {[%clk 0:04:43.3]} 6... Nxc6 {[%clk
0:04:55.7]} 7. Bb2 {[%clk 0:04:41.4]} 7... Qg5 {[%clk 0:04:54.6]} 8. Qf3 {[%clk
0:04:21]} 8... Bg4 {[%clk 0:04:53]} 9. Qf4 {[%clk 0:04:11.7]} 9... Qg6 {[%clk
0:04:52.2]} 10. d3 {[%clk 0:03:57.2]} 10... Bd6 {[%clk 0:04:50.9]} 11. Qa4
{[%clk 0:03:50]} 11... b5 {[%clk 0:04:49.8]} 0-1

[Event "Live Chess"]
[Site "Chess.com"]
[Date "2023.05.21"]
[Round "-"]
[White "zdanevych"]
[Black "WilliamofOrange16th"]
[Result "0-1"]
[WhiteElo "1498"]
[BlackElo "1867"]
[TimeControl "300"]
[EndTime "7:16:29 PDT"]
[Termination "WilliamofOrange16th won by checkmate"]

1. d4 {[%clk 0:04:59.3]} 1... d5 {[%clk 0:04:58.5]} 2. c4 {[%clk 0:04:58.8]}
2... c6 {[%clk 0:04:57.6]} 3. Nc3 {[%clk 0:04:57.4]} 3... Nf6 {[%clk 0:04:56.8]}
4. Nf3 {[%clk 0:04:55]} 4... a6 {[%clk 0:04:54.5]} 5. h3 {[%clk 0:04:54]} 5...
Bf5 {[%clk 0:04:52.5]} 6. Bf4 {[%clk 0:04:52.1]} 6... dxc4 {[%clk 0:04:49.8]} 7.
e3 {[%clk 0:04:44.1]} 7... b5 {[%clk 0:04:48.6]} 8. a3 {[%clk 0:04:42.9]} 8...
e6 {[%clk 0:04:46.5]} 9. Be2 {[%clk 0:04:38.8]} 9... Bd6 {[%clk 0:04:45.3]} 10.
Bg5 {[%clk 0:04:35.5]} 10... Nbd7 {[%clk 0:04:42.5]} 11. O-O {[%clk 0:04:33.9]}
11... h6 {[%clk 0:04:41.4]} 12. Bh4 {[%clk 0:04:31.4]} 12... Qc7 {[%clk
0:04:40]} 13. b3 {[%clk 0:04:23.7]} 13... cxb3 {[%clk 0:04:37.6]} 14. Qxb3
{[%clk 0:04:23.4]} 14... g5 {[%clk 0:04:35.5]} 15. Bg3 {[%clk 0:04:21.3]} 15...
Bxg3 {[%clk 0:04:34.5]} 16. fxg3 {[%clk 0:04:21.2]} 16... Qxg3 {[%clk
0:04:29.5]} 17. Kh1 {[%clk 0:04:11.4]} 17... g4 {[%clk 0:04:18.2]} 18. Ne5
{[%clk 0:04:00.4]} 18... gxh3 {[%clk 0:04:10.1]} 19. Bf3 {[%clk 0:03:57.9]}
19... hxg2+ {[%clk 0:04:03.2]} 20. Bxg2 {[%clk 0:03:56.6]} 20... Nxe5 {[%clk
0:03:57]} 21. dxe5 {[%clk 0:03:56]} 21... Ng4 {[%clk 0:03:55.6]} 22. Rxf5 {[%clk
0:03:45.6]} 22... Qh2# {[%clk 0:03:54]} 0-1

[Event "Live Chess"]
[Site "Chess.com"]
[Date "2023.05.21"]
[Round "-"]
[White "BillythekidFellowes"]
[Black "LaupMiths"]
[Result "1-0"]
[WhiteElo "2091"]
[BlackElo "1809"]
[TimeControl "300"]
[EndTime "7:16:39 PDT"]
[Termination "BillythekidFellowes won by resignation"]

1. e4 {[%clk 0:04:59.9]} 1... c5 {[%clk 0:04:56.7]} 2. Nf3 {[%clk 0:04:59.8]}
2... e6 {[%clk 0:04:54.2]} 3. d4 {[%clk 0:04:52.9]} 3... cxd4 {[%clk 0:04:54.1]}
4. Nxd4 {[%clk 0:04:34.4]} 4... Nc6 {[%clk 0:04:52.5]} 5. Nc3 {[%clk 0:04:33.2]}
5... a6 {[%clk 0:04:49.9]} 6. Nxc6 {[%clk 0:04:31.3]} 6... bxc6 {[%clk
0:04:47.9]} 7. Bd3 {[%clk 0:04:30.4]} 7... d5 {[%clk 0:04:46.6]} 8. exd5 {[%clk
0:04:30]} 8... cxd5 {[%clk 0:04:40.6]} 9. O-O {[%clk 0:04:29.2]} 9... Nf6 {[%clk
0:04:39.2]} 10. Bg5 {[%clk 0:04:19.5]} 10... Be7 {[%clk 0:04:36.3]} 11. Re1
{[%clk 0:04:16.8]} 11... h6 {[%clk 0:04:34.9]} 12. Bxf6 {[%clk 0:04:14.5]} 12...
Bxf6 {[%clk 0:04:33.9]} 13. Qf3 {[%clk 0:04:14.1]} 13... O-O {[%clk 0:04:32.2]}
14. Rad1 {[%clk 0:04:11.7]} 14... Qc7 {[%clk 0:04:22.9]} 15. Ne4 {[%clk
0:04:05.7]} 15... dxe4 {[%clk 0:04:20.5]} 16. Qxe4 {[%clk 0:04:05.2]} 16... g6
{[%clk 0:04:16]} 17. Qxa8 {[%clk 0:04:01.8]} 17... Bb7 {[%clk 0:04:15.6]} 18.
Qa7 {[%clk 0:04:00.5]} 18... Qc6 {[%clk 0:04:13.6]} 19. Be4 {[%clk 0:03:58.4]}
1-0

[Event "Live Chess"]
[Site "Chess.com"]
[Date "2023.05.21"]
[Round "-"]
[White "ProfPoisson"]
[Black "Ferrarifan27"]
[Result "0-1"]
[WhiteElo "1218"]
[BlackElo "2055"]
[TimeControl "300"]
[EndTime "7:16:40 PDT"]
[Termination "Ferrarifan27 won on time"]

1. e4 {[%clk 0:04:55]} 1... e5 {[%clk 0:04:58.9]} 2. Nf3 {[%clk 0:04:52.5]} 2...
Nc6 {[%clk 0:04:58.2]} 3. d4 {[%clk 0:04:50]} 3... exd4 {[%clk 0:04:57.1]} 4.
Bc4 {[%clk 0:04:47]} 4... Bb4+ {[%clk 0:04:52.5]} 5. c3 {[%clk 0:04:42.4]} 5...
dxc3 {[%clk 0:04:52.4]} 6. bxc3 {[%clk 0:04:39.8]} 6... Ba5 {[%clk 0:04:26.4]}
7. Ng5 {[%clk 0:04:13.7]} 7... Nh6 {[%clk 0:04:21.7]} 8. Qf3 {[%clk 0:03:46.4]}
8... Ne5 {[%clk 0:04:16]} 9. Bxf7+ {[%clk 0:03:16.9]} 9... Nhxf7 {[%clk
0:04:11.7]} 10. Qf5 {[%clk 0:03:01.7]} 10... d6 {[%clk 0:03:58.6]} 11. Nxf7
{[%clk 0:02:58.3]} 11... Bxf5 {[%clk 0:03:52.1]} 12. Nxd8 {[%clk 0:02:54.8]}
12... Bxe4 {[%clk 0:03:51]} 13. Ne6 {[%clk 0:02:44.1]} 13... Nd3+ {[%clk
0:03:38.5]} 14. Kd2 {[%clk 0:02:35.1]} 14... Nxc1 {[%clk 0:03:37.1]} 15. Rxc1
{[%clk 0:02:29.7]} 15... Bxg2 {[%clk 0:03:32.4]} 16. Rg1 {[%clk 0:02:24.9]}
16... Bd5 {[%clk 0:03:29.6]} 17. Nxg7+ {[%clk 0:02:14.4]} 17... Kd7 {[%clk
0:03:28.3]} 18. Nf5 {[%clk 0:02:06.3]} 18... Rhg8 {[%clk 0:03:25.2]} 19. Re1
{[%clk 0:01:59.1]} 19... Rae8 {[%clk 0:03:22.1]} 20. Na3 {[%clk 0:01:54.5]}
20... Rxe1 {[%clk 0:03:15.1]} 21. Rxe1 {[%clk 0:01:51.8]} 21... Re8 {[%clk
0:03:10.3]} 22. Rg1 {[%clk 0:01:42.8]} 22... Bb6 {[%clk 0:02:46.9]} 23. Rg7+
{[%clk 0:01:34.9]} 23... Kc6 {[%clk 0:02:46]} 24. Ne7+ {[%clk 0:01:30.7]} 24...
Kc5 {[%clk 0:02:43.6]} 25. Nxd5 {[%clk 0:01:23.9]} 25... Kxd5 {[%clk 0:02:41.4]}
26. Rxh7 {[%clk 0:01:21.3]} 26... Bxf2 {[%clk 0:02:35.9]} 27. Rxc7 {[%clk
0:01:18.4]} 27... Be3+ {[%clk 0:02:32.5]} 28. Kd3 {[%clk 0:01:12.9]} 28... Bc5
{[%clk 0:02:27.6]} 29. c4+ {[%clk 0:01:03.9]} 29... Ke6 {[%clk 0:02:24.5]} 30.
Nb5 {[%clk 0:01:00.7]} 30... a6 {[%clk 0:02:22.2]} 31. Nd4+ {[%clk 0:00:57.6]}
31... Bxd4 {[%clk 0:02:18.7]} 32. Kxd4 {[%clk 0:00:55.5]} 32... Rb8 {[%clk
0:02:13.9]} 33. Rh7 {[%clk 0:00:52]} 33... b5 {[%clk 0:02:12.1]} 34. cxb5 {[%clk
0:00:46.2]} 34... Rxb5 {[%clk 0:02:05.5]} 35. h4 {[%clk 0:00:37.5]} 35... Ra5
{[%clk 0:02:04.3]} 36. h5 {[%clk 0:00:33.6]} 36... Ra4+ {[%clk 0:02:03.3]} 37.
Kc3 {[%clk 0:00:30.1]} 37... Rxa2 {[%clk 0:02:02.2]} 38. Rh8 {[%clk 0:00:27.2]}
38... Kd5 {[%clk 0:01:59.1]} 39. h6 {[%clk 0:00:26]} 39... Rh2 {[%clk
0:01:53.9]} 40. h7 {[%clk 0:00:24.1]} 40... a5 {[%clk 0:01:49.2]} 41. Kb3 {[%clk
0:00:22.6]} 41... Rh4 {[%clk 0:01:45.9]} 42. Kc3 {[%clk 0:00:18]} 42... a4
{[%clk 0:01:42.5]} 43. Kb2 {[%clk 0:00:16.7]} 43... Kd4 {[%clk 0:01:36.6]} 44.
Ka3 {[%clk 0:00:16.6]} 44... Kd5 {[%clk 0:01:28.4]} 45. Ka2 {[%clk 0:00:14.7]}
45... Rh3 {[%clk 0:01:23.9]} 46. Kb2 {[%clk 0:00:13]} 46... a3+ {[%clk
0:01:21.5]} 47. Ka2 {[%clk 0:00:11.5]} 47... Kd4 {[%clk 0:01:15.4]} 48. Ra8
{[%clk 0:00:10.1]} 48... Rxh7 {[%clk 0:01:13]} 49. Rxa3 {[%clk 0:00:08.7]} 49...
Rb7 {[%clk 0:01:11.4]} 50. Rb3 {[%clk 0:00:06.2]} 50... Rxb3 {[%clk 0:01:09.6]}
51. Kxb3 {[%clk 0:00:05.3]} 51... Kd3 {[%clk 0:01:09]} 52. Kb2 {[%clk
0:00:04.1]} 52... Kd2 {[%clk 0:01:00.6]} 53. Kb3 {[%clk 0:00:03]} 53... d5
{[%clk 0:00:59.4]} 54. Kb4 {[%clk 0:00:01.3]} 54... d4 {[%clk 0:00:58.5]} 55.
Kc4 {[%clk 0:00:00.4]} 55... d3 {[%clk 0:00:57.8]} 0-1

[Event "Live Chess"]
[Site "Chess.com"]
[Date "2023.05.21"]
[Round "-"]
[White "whatnot126"]
[Black "TheSmoulderingMaster"]
[Result "1-0"]
[WhiteElo "2069"]
[BlackElo "1658"]
[TimeControl "300"]
[EndTime "7:16:49 PDT"]
[Termination "whatnot126 won by resignation"]

1. e4 {[%clk 0:04:59.6]} 1... c5 {[%clk 0:04:58.5]} 2. c3 {[%clk 0:04:58.7]}
2... d5 {[%clk 0:04:56.9]} 3. exd5 {[%clk 0:04:57.9]} 3... Qxd5 {[%clk
0:04:56.1]} 4. d4 {[%clk 0:04:57.6]} 4... Nc6 {[%clk 0:04:54.6]} 5. Nf3 {[%clk
0:04:56.8]} 5... Bg4 {[%clk 0:04:52.3]} 6. Nbd2 {[%clk 0:04:53.3]} 6... e6
{[%clk 0:04:50.7]} 7. Bc4 {[%clk 0:04:46.7]} 7... Qh5 {[%clk 0:04:46.7]} 8. h3
{[%clk 0:04:44.2]} 8... Nf6 {[%clk 0:04:44.1]} 9. O-O {[%clk 0:04:40.8]} 9...
Bf5 {[%clk 0:04:41.8]} 10. g4 {[%clk 0:04:32.1]} 10... Nxg4 {[%clk 0:04:40.5]}
11. hxg4 {[%clk 0:04:31]} 11... Bxg4 {[%clk 0:04:40.4]} 12. Be2 {[%clk
0:03:50.1]} 12... Bd6 {[%clk 0:04:36.3]} 13. dxc5 {[%clk 0:03:40.3]} 13... Bf4
{[%clk 0:04:31.9]} 14. Re1 {[%clk 0:03:19]} 14... O-O-O {[%clk 0:04:28.4]} 15.
Qc2 {[%clk 0:02:18.3]} 15... Rxd2 {[%clk 0:04:24.3]} 16. Bxd2 {[%clk 0:02:12.8]}
16... Bxf3 {[%clk 0:04:23]} 17. Bxf3 {[%clk 0:02:06.9]} 17... Qxf3 {[%clk
0:04:19.2]} 18. Bxf4 {[%clk 0:02:03.8]} 18... Qxf4 {[%clk 0:04:18.1]} 19. Re4
{[%clk 0:01:56.3]} 19... Qg5+ {[%clk 0:04:15.4]} 20. Kf1 {[%clk 0:01:53.4]}
20... Rd8 {[%clk 0:04:11.5]} 21. Rd1 {[%clk 0:01:36.9]} 21... Rxd1+ {[%clk
0:04:03.2]} 22. Qxd1 {[%clk 0:01:36.8]} 22... Qf5 {[%clk 0:03:59.9]} 23. Qg4
{[%clk 0:01:33.9]} 23... Qxc5 {[%clk 0:03:54.1]} 24. Qxg7 {[%clk 0:01:33.1]}
24... Qd5 {[%clk 0:03:50.5]} 25. Qg8+ {[%clk 0:01:28.9]} 25... Kc7 {[%clk
0:03:49]} 26. Qxf7+ {[%clk 0:01:28]} 26... Kb6 {[%clk 0:03:47.9]} 27. Qxe6
{[%clk 0:01:26.6]} 27... Qd1+ {[%clk 0:03:45.4]} 28. Re1 {[%clk 0:01:24.9]}
28... Qd3+ {[%clk 0:03:43.4]} 29. Kg1 {[%clk 0:01:23.4]} 29... a6 {[%clk
0:03:29.8]} 30. a4 {[%clk 0:01:14.1]} 30... Qc2 {[%clk 0:03:08.4]} 31. Qe3+
{[%clk 0:01:11.5]} 31... Ka5 {[%clk 0:03:02.1]} 32. Qc5+ {[%clk 0:01:07.4]}
32... Kxa4 {[%clk 0:02:58.2]} 33. Ra1+ {[%clk 0:01:06]} 33... Kb3 {[%clk
0:02:55.9]} 34. Qa3+ {[%clk 0:01:00]} 34... Kc4 {[%clk 0:02:54.2]} 35. Qa4+
{[%clk 0:00:58.2]} 35... Qxa4 {[%clk 0:02:48.8]} 36. Rxa4+ {[%clk 0:00:58.1]}
36... Kd3 {[%clk 0:02:45.4]} 37. Rh4 {[%clk 0:00:54.9]} 37... Kc2 {[%clk
0:02:42.5]} 38. Rxh7 {[%clk 0:00:53]} 38... Na5 {[%clk 0:02:39.1]} 39. Rc7
{[%clk 0:00:46.2]} 39... Kxb2 {[%clk 0:02:37.2]} 40. f4 {[%clk 0:00:45.8]} 40...
Nc6 {[%clk 0:02:29.3]} 41. Rxb7+ {[%clk 0:00:43.5]} 41... Kxc3 {[%clk
0:02:27.2]} 42. Rb6 {[%clk 0:00:42.2]} 42... Nd4 {[%clk 0:02:23.3]} 43. Rxa6
{[%clk 0:00:41]} 43... Nf5 {[%clk 0:02:18.7]} 44. Kf2 {[%clk 0:00:38.5]} 44...
Kd4 {[%clk 0:02:16.8]} 45. Kf3 {[%clk 0:00:37.7]} 45... Kd3 {[%clk 0:02:12.4]}
46. Kg4 {[%clk 0:00:34.8]} 46... Ne3+ {[%clk 0:02:10.6]} 47. Kg5 {[%clk
0:00:33.4]} 47... Kd4 {[%clk 0:02:07.3]} 48. Ra4+ {[%clk 0:00:32.2]} 48... Kd5
{[%clk 0:02:06]} 49. f5 {[%clk 0:00:30.9]} 49... Kd6 {[%clk 0:02:02.1]} 50. Kg6
{[%clk 0:00:29.6]} 50... Ke7 {[%clk 0:01:58.9]} 51. f6+ {[%clk 0:00:28.4]} 51...
Ke8 {[%clk 0:01:55.3]} 52. Ra8+ {[%clk 0:00:27.6]} 52... Kd7 {[%clk 0:01:53]}
53. f7 {[%clk 0:00:27.5]} 53... Nd5 {[%clk 0:01:47.1]} 54. f8=Q {[%clk
0:00:26.1]} 54... Ne7+ {[%clk 0:01:45.4]} 55. Qxe7+ {[%clk 0:00:23.4]} 1-0

[Event "Live Chess"]
[Site "Chess.com"]
[Date "2023.05.21"]
[Round "-"]
[White "KeithArkell"]
[Black "Missedidea"]
[Result "1-0"]
[WhiteElo "2476"]
[BlackElo "1783"]
[TimeControl "300"]
[EndTime "7:16:59 PDT"]
[Termination "KeithArkell won by resignation"]

1. d4 {[%clk 0:04:57.7]} 1... Nf6 {[%clk 0:04:58.1]} 2. Nf3 {[%clk 0:04:54.9]}
2... g6 {[%clk 0:04:57]} 3. c4 {[%clk 0:04:52.3]} 3... Bg7 {[%clk 0:04:55.5]} 4.
Nc3 {[%clk 0:04:51.5]} 4... O-O {[%clk 0:04:54.2]} 5. g3 {[%clk 0:04:51]} 5...
d6 {[%clk 0:04:52.1]} 6. Bg2 {[%clk 0:04:50.4]} 6... Nc6 {[%clk 0:04:50.8]} 7.
O-O {[%clk 0:04:49.3]} 7... Nd7 {[%clk 0:04:49]} 8. Be3 {[%clk 0:04:47.2]} 8...
e5 {[%clk 0:04:45.8]} 9. h3 {[%clk 0:04:38.9]} 9... Na5 {[%clk 0:04:36.1]} 10.
b3 {[%clk 0:04:36.8]} 10... c5 {[%clk 0:04:16.2]} 11. dxe5 {[%clk 0:04:34.1]}
11... dxe5 {[%clk 0:04:06.9]} 12. Rc1 {[%clk 0:04:29.6]} 12... Nc6 {[%clk
0:04:03.4]} 13. Bg5 {[%clk 0:04:19.2]} 13... f6 {[%clk 0:03:58.7]} 14. Bd2
{[%clk 0:04:18.1]} 14... Nd4 {[%clk 0:03:53.4]} 15. e3 {[%clk 0:04:16.5]} 15...
Nf5 {[%clk 0:03:45.6]} 16. Qe2 {[%clk 0:04:11]} 16... Nb6 {[%clk 0:03:34.9]} 17.
Rfd1 {[%clk 0:04:09.6]} 17... Qe7 {[%clk 0:03:31.4]} 18. Ne4 {[%clk 0:04:07.3]}
18... Be6 {[%clk 0:03:21.6]} 19. g4 {[%clk 0:04:00.5]} 19... Nh6 {[%clk
0:03:16.8]} 20. g5 {[%clk 0:03:55.3]} 20... Nf5 {[%clk 0:03:14.5]} 21. gxf6
{[%clk 0:03:54.1]} 21... Bxf6 {[%clk 0:03:12.6]} 22. Nxf6+ {[%clk 0:03:52.4]}
22... Rxf6 {[%clk 0:03:02.9]} 23. Nxe5 {[%clk 0:03:50.1]} 23... Nh4 {[%clk
0:02:54.3]} 24. Bc3 {[%clk 0:03:40.6]} 24... Nxg2 {[%clk 0:02:47.2]} 25. Kxg2
{[%clk 0:03:40.5]} 25... Bf5 {[%clk 0:02:35.1]} 26. e4 {[%clk 0:03:30.7]} 26...
Bd7 {[%clk 0:02:22.5]} 27. Nxd7 {[%clk 0:03:23.4]} 27... Nxd7 {[%clk 0:02:19.1]}
28. Rxd7 {[%clk 0:03:22.1]} 28... Rxf2+ {[%clk 0:02:09.7]} 29. Qxf2 {[%clk
0:03:18.4]} 29... Qxd7 {[%clk 0:02:03.6]} 30. Qf6 {[%clk 0:03:17.1]} 30... Rf8
{[%clk 0:01:55.6]} 31. Qh8+ {[%clk 0:03:15.1]} 31... Kf7 {[%clk 0:01:54.6]} 32.
Qxh7+ {[%clk 0:03:14.3]} 32... Ke8 {[%clk 0:01:50.4]} 33. Qxd7+ {[%clk
0:03:11.5]} 33... Kxd7 {[%clk 0:01:48.8]} 34. Rf1 {[%clk 0:03:09.4]} 34... Rxf1
{[%clk 0:01:43.3]} 35. Kxf1 {[%clk 0:03:07.9]} 1-0